bitfinex-derivatives/quotes_ETHF0:USTF0_20250116
["timestamp","ask_amount","ask_price","bid_price","bid_amount"]
[1737017309966,3.60468502,3322.4,3321.9,12.0304]
[1737017310170,0.60209,3322.3,3321.7,15.2382]
[1737017310369,3.2078,3322.1,3321.7,15.17521503]
[1737017310681,5.61103403,3321.9,3321.7,15.17521503]
[1737017310975,5.61103403,3321.9,3321.7,9.11646234]
[1737017311268,0.4518388,3321.9,3321.8,0.91319756]
[1737017311666,0.4518388,3321.9,3321.8,24.80211809]
[1737017311861,5.61103403,3322.0,3321.3,1.23708431]
[1737017312168,0.45181052,3321.9,3321.8,0.60217]
[1737017312364,0.05181052,3321.9,3321.5,24.98802736]
[1737017312571,3.2078,3322.1,3321.5,24.98802736]
[1737017312572,3.2078,3322.1,3322.0,0.60213]
[1737017312775,4.48303601,3322.2,3322.1,0.60211]
[1737017312966,4.48303601,3322.4,3322.1,0.6021]
[1737017313173,3.2078,3322.3,3321.9,3.2078]
[1737017313372,6.60190342,3322.3,3321.9,3.2078]
[1737017313568,3.2078,3322.3,3321.9,3.2078]
[1737017313874,3.2078,3322.3,3322.0,40.8]
[1737017314172,3.30962992,3322.2,3321.3,1.23708431]
[1737017314377,3.30962992,3322.2,3320.7,3.2078]
[1737017314378,3.2078,3321.5,3320.7,3.2078]
[1737017314675,3.29427865,3321.0,3319.5,3.2078]
[1737017314872,3.2078,3319.9,3318.9,3.2078]
[1737017315368,3.2078,3320.3,3318.9,27.09672053]
[1737017315570,3.2078,3320.5,3319.7,3.2078]
[1737017315763,2.23380813,3320.8,3320.7,0.60237]
[1737017315963,4.48303601,3320.8,3320.7,0.60237]
[1737017316165,0.08303601,3320.8,3320.7,24.49129053]
[1737017316364,0.08303601,3320.8,3320.7,26.26729053]
[1737017316580,5.61103403,3321.2,3321.1,0.60229]
[1737017317080,2.22777093,3321.3,3321.1,23.88892053]
[1737017317285,2.22777093,3321.3,3321.2,0.60228]
[1737017317575,3.3416564,3321.5,3321.4,0.60224]
[1737017317981,3.3416564,3322.2,3321.4,24.49116053]
[1737017318276,3.2078,3321.9,3321.1,3.2078]
[1737017318667,3.36188068,3321.8,3321.1,3.2078]
[1737017318872,3.2078,3321.9,3321.2,0.60228]
[1737017319077,3.2078,3321.9,3321.1,3.81009]
[1737017319383,3.2078,3321.5,3321.1,3.2078]
[1737017319775,3.2078,3321.5,3320.8,1.776]
[1737017320281,3.2078,3321.1,3320.4,1.5415]
[1737017320577,3.2078,3320.6,3319.7,0.60253]
[1737017320784,3.2078,3320.6,3319.6,0.60257]
[1737017320975,3.13193315,3320.5,3319.5,3.2078]
[1737017321174,3.13193315,3320.5,3319.9,0.6025]
[1737017321375,3.13193315,3320.5,3319.8,0.60253]
[1737017321679,3.13193315,3320.5,3319.5,27.09672053]
[1737017321876,3.2078,3320.6,3319.5,27.09672053]
[1737017322080,3.2078,3320.6,3320.5,0.6024]
[1737017322277,3.2078,3320.6,3319.6,0.60257]
[1737017322572,3.2078,3320.6,3319.5,3.2078]
[1737017322776,3.26689399,3320.5,3319.6,1.776]
[1737017322976,3.2078,3320.6,3319.6,1.776]
[1737017323176,3.2078,3320.6,3320.2,0.60245]
[1737017323378,3.2078,3320.6,3319.9,3.2078]
[1737017323879,3.2078,3320.6,3320.3,0.60244]
[1737017324078,3.2078,3320.6,3319.8,0.60252]
[1737017324079,3.49622851,3320.5,3319.8,0.60252]
[1737017324279,3.49622851,3320.5,3319.7,41.40255]
[1737017324479,3.49622851,3320.5,3319.8,0.60251]
[1737017324682,3.49622851,3320.5,3319.7,40.8]
[1737017324882,3.49622851,3320.5,3319.9,0.60251]
[1737017325083,3.2078,3320.6,3320.0,0.60248]
[1737017325681,3.2078,3320.6,3320.3,0.60243]
[1737017325886,3.2078,3320.6,3320.2,0.60245]
[1737017326084,3.2078,3320.6,3320.1,0.60247]
[1737017326285,3.2078,3320.6,3320.0,23.88892053]
[1737017326286,3.2078,3320.2,3319.1,1.5283]
[1737017326484,6.59169797,3320.5,3318.9,3.2078]
[1737017326485,3.2078,3319.6,3318.9,3.2078]
[1737017326790,3.2078,3319.6,3318.9,44.61049]
[1737017327089,3.29741932,3319.5,3318.9,40.8]
[1737017327285,3.2078,3319.6,3318.9,0.60268]
[1737017327481,3.2078,3319.6,3318.5,3.2078]
[1737017327682,3.40202273,3319.5,3319.3,0.60262]
[1737017327880,3.2078,3319.6,3318.7,0.60273]
[1737017328077,3.2078,3319.6,3319.5,0.60259]
[1737017328387,3.2078,3320.3,3319.3,3.2078]
[1737017328581,3.2078,3320.3,3319.5,0.60258]
[1737017328782,3.2078,3320.3,3319.6,40.8]
[1737017328982,3.2078,3319.9,3319.6,40.8]
[1737017329786,3.2078,3319.9,3319.7,0.60255]
[1737017329980,3.2078,3319.9,3319.6,40.8]
[1737017330184,3.2078,3319.9,3319.1,0.60266]
[1737017330386,3.2078,3319.5,3319.0,2.02337]
[1737017330582,3.2078,3319.5,3319.1,0.60266]
[1737017330786,3.2078,3319.5,3319.0,42.82337]
[1737017331093,3.1556205,3319.4,3318.9,0.60269]
[1737017331287,3.2078,3319.0,3318.2,4.9848]
[1737017331792,3.2078,3319.0,3318.9,0.60269]
[1737017332288,3.2078,3319.0,3318.9,24.49161053]
[1737017333689,3.2078,3319.0,3318.9,65.29161053]
[1737017333892,0.44456942,3320.1,3318.9,61.48112053]
[1737017334096,0.18836436,3320.0,3319.7,3.2078]
[1737017334302,3.2078,3320.4,3320.0,0.60249]
[1737017334498,3.3961529,3320.3,3319.5,4.9848]
[1737017334794,3.2078,3320.3,3319.6,0.60257]
[1737017335090,1.4764,3320.9,3319.1,3.2078]
[1737017335091,3.2078,3319.9,3319.1,3.2078]
[1737017335285,3.2078,3319.9,3319.5,0.60257]
[1737017335487,3.2078,3319.9,3318.9,1.777]
[1737017335488,3.81031,3319.9,3319.2,0.60263]
[1737017335688,3.2078,3319.5,3318.9,1.777]
[1737017336194,3.2078,3319.5,3319.1,0.60264]
[1737017336584,3.2078,3319.5,3319.2,0.60262]
[1737017336792,3.2078,3319.5,3319.1,21.28376053]
[1737017337091,3.6565501,3319.5,3318.9,0.60269]
[1737017337289,3.2078,3319.1,3318.3,4.9648]
[1737017337492,3.2078,3319.1,3318.5,0.60275]
[1737017337690,3.2078,3319.1,3318.8,0.60271]
[1737017337887,0.4487501,3319.3,3319.2,0.60264]
[1737017338083,3.2078,3319.5,3318.4,4.80124865]
[1737017338288,3.2078,3319.5,3319.4,0.6026]
[1737017338490,3.2078,3319.5,3318.9,1.757]
[1737017338687,3.6522893,3319.5,3319.2,0.60264]
[1737017339095,3.6522893,3319.5,3319.1,0.60265]
[1737017339302,0.44867769,3319.4,3319.3,0.60262]
[1737017339593,0.60265,3319.2,3318.2,0.60282]
[1737017339795,3.2078,3318.2,3317.5,3.2078]
[1737017339990,3.2078,3318.3,3318.2,0.60282]
[1737017340191,3.2078,3318.7,3317.7,1.757]
[1737017340392,3.2078,3319.7,3319.1,0.60265]
[1737017340596,3.2078,3319.7,3318.6,1.757]
[1737017340894,3.33722437,3319.6,3319.4,0.60259]
[1737017341094,3.2078,3319.7,3319.3,0.60261]
[1737017341288,3.2078,3319.4,3318.3,3.2078]
[1737017341493,3.2078,3318.9,3318.8,0.60271]
[1737017341804,3.2078,3319.4,3319.3,0.60262]
[1737017342005,3.2078,3319.4,3318.8,1.757]
[1737017342290,3.2078,3319.4,3319.3,0.60262]
[1737017342496,3.2078,3319.4,3319.3,21.28374053]
[1737017342893,3.2078,3319.7,3319.3,40.8]
[1737017343095,4.7591,3320.4,3319.3,55.06552053]
[1737017343293,3.2078,3320.4,3319.3,44.0078]
[1737017343493,0.6026,3319.5,3319.3,3.2078]
[1737017343794,3.2078,3320.0,3319.3,3.2078]
[1737017343991,3.39213619,3319.4,3319.3,3.2078]
[1737017344191,6.42963619,3319.9,3319.3,3.2078]
[1737017344385,6.42963619,3319.9,3318.9,3.2078]
[1737017344386,3.39213619,3319.7,3318.9,3.2078]
[1737017344587,3.2078,3319.6,3318.5,3.2078]
[1737017344888,3.2078,3319.6,3318.1,1.757]
[1737017344889,3.42324895,3319.5,3319.0,3.81048]
[1737017345196,4.02583895,3319.5,3318.9,0.60268]
[1737017345396,3.42324895,3319.5,3318.6,44.0078]
[1737017345594,3.64002,3319.9,3319.3,0.6026]
[1737017345794,3.64002,3319.9,3319.3,0.60261]
[1737017345989,3.38109764,3319.8,3319.2,3.2078]
[1737017346191,3.38109764,3319.8,3318.6,40.8]
[1737017346192,1.5469,3319.9,3319.7,0.60255]
[1737017346393,1.5469,3319.9,3319.8,0.60253]
[1737017346691,1.5469,3319.9,3319.6,3.2078]
[1737017346891,4.96700802,3319.9,3319.2,3.2078]
[1737017347193,0.60262,3319.4,3319.2,3.2078]
[1737017347396,3.29427865,3319.3,3318.2,3.2078]
[1737017347698,3.2078,3318.9,3318.2,3.2078]
[1737017347899,1.5021,3318.8,3318.2,3.2078]
[1737017348095,4.90925307,3318.8,3318.2,3.2078]
[1737017348289,1.5021,3318.8,3318.2,14.26552053]
[1737017348499,1.5021,3318.8,3318.7,0.60273]
[1737017348699,0.60268,3319.0,3318.2,3.2078]
[1737017348999,3.20743474,3318.8,3318.5,3.2078]
[1737017349197,3.20743474,3318.9,3318.1,44.0078]
[1737017349398,0.60274,3318.7,3318.2,0.60282]
[1737017349700,3.3416564,3319.2,3318.4,0.60278]
[1737017349701,3.27802206,3318.6,3318.4,0.60278]
[1737017349892,3.27802206,3318.6,3318.5,0.60277]
[1737017350090,3.3416564,3319.2,3318.5,3.2078]
[1737017350395,3.3416564,3319.2,3319.1,0.60266]
[1737017350594,10.0293502,3319.4,3318.9,3.2078]
[1737017350795,4.480357,3319.1,3318.9,10.34559712]
[1737017350989,3.2078,3319.0,3318.4,0.60279]
[1737017351202,3.2078,3318.6,3317.7,1.4682]
[1737017351595,3.2078,3318.6,3318.3,0.60279]
[1737017351798,3.2078,3318.6,3318.4,0.60278]
[1737017351994,1.5158,3318.9,3318.3,3.2078]
[1737017352189,3.2078,3319.1,3318.3,3.2078]
[1737017352400,3.81046,3319.1,3318.5,0.60276]
[1737017352792,3.2078,3319.1,3318.5,10.34559712]
[1737017353191,3.2078,3319.1,3318.7,3.2078]
[1737017353401,3.2078,3319.1,3319.0,10.34559712]
[1737017353701,3.2078,3319.1,3319.0,10.94827712]
[1737017353903,6.87342644,3319.5,3319.4,0.6026]
[1737017354398,6.87342644,3319.5,3319.4,14.15599712]
[1737017354697,0.60263,3319.3,3318.7,3.81052]
[1737017354896,4.7632,3319.4,3318.7,3.2078]
[1737017355102,0.60265,3319.2,3318.7,3.2078]
[1737017355302,3.38149172,3319.3,3318.7,3.2078]
[1737017355502,6.195,3319.4,3318.7,3.2078]
[1737017355701,6.79762,3319.4,3318.9,0.60268]
[1737017355903,6.79761,3319.4,3318.9,0.60268]
[1737017356093,0.60266,3319.2,3318.3,3.2078]
[1737017356292,0.60266,3319.1,3318.6,0.60274]
[1737017356493,4.51789191,3318.9,3318.6,0.60274]
[1737017356699,5.12060191,3318.9,3318.4,0.60279]
[1737017356892,4.51789191,3318.9,3318.4,0.60278]
[1737017357101,4.51789191,3318.9,3318.6,0.60274]
[1737017357299,4.51789191,3318.9,3318.4,10.34559712]
[1737017357506,4.51789191,3318.9,3318.8,0.60271]
[1737017357798,4.7632,3319.4,3319.1,0.60264]
[1737017358004,4.7632,3319.4,3318.5,1.5255]
[1737017358306,3.2078,3320.2,3319.0,3.2078]
[1737017358501,3.2078,3320.2,3319.5,3.2078]
[1737017359004,3.2078,3320.2,3320.1,0.60248]
[1737017359304,6.87342644,3320.5,3320.4,0.60242]
[1737017359500,6.87342644,3320.5,3320.1,1.757]
[1737017359501,4.54682683,3320.8,3320.7,0.60237]
[1737017359807,1.51482683,3320.8,3320.7,46.36717]
[1737017360603,1.51482683,3320.8,3320.7,51.36717]
[1737017360909,3.39555156,3321.0,3320.9,0.60233]
[1737017361202,3.39555156,3321.0,3320.7,44.0078]
[1737017361405,3.39555156,3321.0,3320.7,3.81016]
[1737017361703,3.39555156,3321.0,3320.7,3.2078]
[1737017361906,3.39555156,3321.0,3320.9,0.60233]
[1737017362199,3.39555156,3321.0,3320.7,3.81017]
[1737017362405,3.39555156,3321.0,3320.7,3.2078]
[1737017362704,3.39555156,3321.0,3320.9,0.60233]
[1737017363113,3.39555156,3321.0,3320.9,5.60233]
[1737017363712,0.45194889,3321.2,3320.3,40.8]
[1737017363713,3.84750045,3321.2,3320.6,0.60237]
[1737017364005,3.81013,3320.9,3320.2,0.60245]
[1737017364207,3.2078,3320.9,3320.7,0.60237]
[1737017364400,0.45194889,3321.2,3321.0,0.60231]
[1737017364600,0.45194889,3321.2,3320.2,3.2078]
[1737017364902,0.45194889,3321.2,3320.9,0.60232]
[1737017365200,0.45194889,3321.2,3320.2,3.2078]
[1737017365501,0.45194889,3321.2,3320.7,0.60236]
[1737017365698,0.45194889,3321.2,3321.1,0.6023]
[1737017366208,0.45194889,3321.2,3321.1,2.3593]
[1737017367207,3.85054401,3321.2,3321.1,2.3593]
[1737017367610,3.85054401,3321.2,3321.1,7.3593]
[1737017367802,3.85054401,3321.2,3321.1,2.3593]
[1737017368002,3.85054401,3321.2,3321.1,43.1593]
[1737017368298,3.85054401,3321.2,3321.0,1.735]
[1737017368608,3.85054401,3321.2,3321.1,0.6023]
[1737017368803,3.85054401,3321.2,3320.5,1.735]
[1737017369007,3.2078,3321.3,3320.8,0.60234]
[1737017369402,3.2078,3321.3,3320.5,1.735]
[1737017369707,3.2078,3321.3,3321.1,0.60229]
[1737017369897,3.2078,3321.3,3320.5,1.735]
[1737017370098,3.2078,3321.3,3321.2,0.60228]
[1737017370307,3.39859512,3321.3,3321.2,0.60228]
[1737017370708,3.39859512,3321.3,3321.1,3.2078]
[1737017370903,6.60639512,3321.3,3320.5,3.2078]
[1737017371105,3.2078,3320.9,3320.3,0.60242]
[1737017371305,3.2078,3320.9,3320.5,0.6024]
[1737017371501,1.5008,3321.2,3320.1,7.9492]
[1737017371703,3.2078,3320.8,3320.1,7.9492]
[1737017372198,3.2078,3320.8,3320.2,0.60246]
[1737017372404,3.2078,3320.8,3320.1,7.9492]
[1737017372606,3.2078,3320.8,3320.4,0.60242]
[1737017372801,3.2078,3320.8,3320.6,0.60238]
[1737017373011,3.2078,3320.8,3320.1,7.9492]
[1737017373211,3.2078,3320.8,3320.1,1.4562]
[1737017373411,3.30436363,3320.7,3319.8,1.735]
[1737017373600,3.2078,3320.4,3319.8,1.735]
[1737017374413,3.2078,3320.4,3320.1,0.60247]
[1737017374613,3.2078,3320.4,3319.9,40.8]
[1737017374812,3.2078,3320.4,3320.3,0.60244]
[1737017375106,3.2078,3320.4,3319.9,40.8]
[1737017375506,3.2078,3320.4,3320.3,0.60244]
[1737017375710,3.2078,3320.4,3319.7,3.2078]
[1737017375711,3.2078,3320.4,3320.0,0.60248]
[1737017375908,3.2078,3320.4,3319.7,3.2078]
[1737017376113,3.2078,3320.4,3320.3,0.60244]
[1737017376910,3.81023,3320.4,3319.8,1.5467]
[1737017377111,0.60253,3319.8,3319.3,3.81041]
[1737017377315,3.2078,3320.0,3319.4,0.60259]
[1737017377613,3.2078,3319.6,3319.1,40.8]
[1737017377815,3.2078,3319.2,3318.6,1.735]
[1737017378018,3.2078,3319.2,3318.7,11.44972]
[1737017378213,3.2078,3319.2,3318.8,0.60271]
[1737017378416,3.2078,3319.2,3318.7,11.44971]
[1737017378719,3.2078,3319.2,3318.8,0.60271]
[1737017379214,3.2078,3319.2,3318.7,10.847]
[1737017379215,3.2078,3319.2,3318.7,0.60273]
[1737017379415,3.2078,3319.2,3318.9,0.60268]
[1737017379806,3.2078,3319.2,3318.0,3.2078]
[1737017380011,3.2078,3318.4,3317.6,3.2078]
[1737017380212,0.60285,3318.1,3317.4,0.60296]
[1737017380515,0.60288,3317.9,3317.2,0.603]
[1737017380814,0.60299,3317.3,3316.8,2.93896311]
[1737017381023,3.2078,3317.5,3316.8,2.93896311]
[1737017381313,0.60304,3317.0,3316.8,2.93896311]
[1737017381519,0.60302,3317.2,3316.8,2.93896311]
[1737017381705,3.29427865,3317.0,3316.3,3.2078]
[1737017381911,3.2078,3316.4,3315.9,3.2078]
[1737017382222,0.60308,3316.8,3316.0,0.60321]
[1737017382412,3.2078,3316.5,3316.1,0.60319]
[1737017382714,3.20205409,3316.8,3316.4,0.60315]
[1737017382908,3.2078,3316.7,3316.6,0.60311]
[1737017383222,3.19869819,3317.0,3316.3,3.2078]
[1737017383420,3.2078,3317.2,3316.6,0.60311]
[1737017383721,0.60321,3316.1,3315.3,0.60334]
[1737017383921,3.2078,3315.9,3315.2,0.60335]
[1737017384117,3.2078,3315.9,3315.1,3.2078]
[1737017384320,0.60327,3315.8,3315.1,3.2078]
[1737017384520,0.60329,3315.7,3315.1,3.2078]
[1737017384716,0.6033,3315.6,3315.1,3.2078]
[1737017384921,3.2078,3315.5,3314.8,0.60344]
[1737017385121,3.2078,3315.5,3314.9,0.60342]
[1737017385422,3.2078,3315.5,3314.9,40.8]
[1737017385816,3.2078,3315.9,3314.9,40.8]
[1737017386318,3.2078,3315.9,3315.2,0.60335]
[1737017386513,3.2078,3315.9,3315.3,0.60333]
[1737017386721,3.2078,3315.9,3315.5,0.6033]
[1737017386920,3.2078,3315.9,3315.5,0.60331]
[1737017387119,3.2078,3315.9,3315.2,3.2078]
[1737017387517,3.2078,3315.9,3315.6,0.60328]
[1737017387720,3.2078,3315.9,3315.8,0.60326]
[1737017387921,3.2078,3316.5,3315.8,0.60326]
[1737017388117,3.2078,3316.5,3315.7,3.2078]
[1737017388413,0.60329,3315.7,3315.3,3.2078]
[1737017388618,0.60325,3315.9,3315.3,3.2078]
[1737017388819,3.2078,3316.1,3315.3,3.2078]
[1737017388820,0.60324,3316.0,3315.3,3.2078]
[1737017389020,3.2078,3316.1,3315.3,3.2078]
[1737017389318,3.2078,3316.1,3315.5,0.60331]
[1737017389627,1.5153,3316.3,3315.8,0.60325]
[1737017389819,1.5153,3316.3,3315.7,3.2078]
[1737017390025,3.81104,3316.0,3315.3,0.60335]
[1737017390230,3.2078,3316.0,3315.2,3.2078]
[1737017390525,3.2349582,3315.9,3315.2,3.2078]
[1737017390920,3.2349582,3315.9,3315.3,0.60335]
[1737017391132,0.60326,3315.8,3315.2,3.2078]
[1737017391419,3.2078,3316.0,3315.2,3.81116]
[1737017391626,3.48502431,3315.7,3315.2,3.2078]
[1737017391924,3.45955322,3315.8,3315.2,3.2078]
[1737017392127,0.60324,3315.9,3315.3,0.60335]
[1737017392430,0.60331,3315.6,3315.2,3.2078]
[1737017392726,3.2078,3316.0,3315.2,3.2078]
[1737017392727,3.29427865,3315.7,3315.2,3.2078]
[1737017393022,0.60333,3315.4,3314.4,3.81131]
[1737017393226,3.81119,3315.1,3314.5,0.60348]
[1737017393425,0.60342,3315.0,3314.4,3.8113]
[1737017393725,0.60344,3314.8,3314.4,3.2078]
[1737017394129,3.23652486,3315.0,3314.4,3.2078]
[1737017394338,4.7518,3315.1,3314.4,3.2078]
[1737017394530,0.6034,3315.0,3314.4,3.2078]
[1737017394831,0.60345,3314.8,3314.4,3.2078]
[1737017395028,3.23652486,3315.0,3314.4,3.2078]
[1737017395224,3.2078,3315.1,3314.7,0.60344]
[1737017395531,3.2078,3315.5,3314.8,3.2078]
[1737017396025,3.2078,3315.1,3314.4,3.8113]
[1737017396223,3.2078,3315.1,3314.4,3.2078]
[1737017396419,3.2078,3315.1,3314.7,0.60346]
[1737017396624,3.2078,3315.5,3314.8,3.2078]
[1737017397031,3.29427865,3315.2,3314.4,3.2078]
[1737017397324,6.47275036,3315.5,3314.4,3.2078]
[1737017397325,3.29427865,3314.7,3314.4,3.2078]
[1737017397523,6.47275036,3315.1,3314.4,3.2078]
[1737017397724,1.4889,3315.6,3314.8,3.2078]
[1737017397725,3.2078,3315.5,3314.8,3.2078]
[1737017398627,4.6844,3316.3,3315.4,3.2078]
[1737017398828,3.29427865,3316.2,3315.4,3.2078]
[1737017399133,6.50207865,3315.7,3314.7,4.9348]
[1737017399329,0.60332,3315.5,3315.0,0.6034]
[1737017399533,6.50207865,3315.7,3314.8,40.8]
[1737017399834,0.60325,3315.9,3315.4,3.81112]
[1737017400032,0.60333,3315.4,3315.0,0.6034]
[1737017400234,3.2078,3315.7,3314.9,3.81121]
[1737017400527,0.60334,3315.4,3314.7,1.727]
[1737017400725,3.2078,3315.7,3314.5,42.527]
[1737017400927,0.60338,3315.2,3314.6,0.60346]
[1737017401229,3.2078,3315.3,3314.5,1.727]
[1737017401430,3.44817305,3316.1,3315.0,3.2078]
[1737017401632,3.2078,3316.6,3315.6,3.2078]
[1737017401929,3.2078,3316.2,3316.1,0.6032]
[1737017402125,3.2078,3316.6,3316.0,3.2078]
[1737017402327,4.6501,3317.0,3316.0,3.2078]
[1737017402625,3.2078,3316.6,3316.0,3.2078]
[1737017402821,3.2078,3316.6,3316.0,3.81102]
[1737017403025,0.60316,3316.4,3315.7,0.60326]
[1737017403332,6.50207865,3316.2,3315.0,3.2078]
[1737017403521,3.2078,3315.8,3315.0,3.2078]
[1737017403721,3.2078,3315.8,3312.8,3.01901]
[1737017403722,0.60341,3315.0,3314.3,0.60353]
[1737017404028,3.29427865,3315.7,3313.8,2.9924]
[1737017404029,3.2078,3314.4,3313.8,2.9924]
[1737017404421,3.2078,3314.6,3314.5,0.60349]
[1737017404620,3.2078,3315.0,3313.9,1.50901]
[1737017404931,3.2078,3315.0,3314.9,0.60342]
[1737017405330,3.2078,3315.0,3314.2,3.2078]
[1737017405530,3.2078,3315.0,3314.8,0.60343]
[1737017406033,3.2078,3315.0,3314.6,0.60346]
[1737017406234,3.2078,3315.0,3314.7,0.60344]
[1737017406434,3.2078,3315.0,3314.8,0.60344]
[1737017406637,3.2078,3315.0,3314.2,3.2078]
[1737017406932,3.81106,3315.8,3314.7,3.2078]
[1737017407122,3.2078,3315.8,3314.8,4.8115]
[1737017407326,3.81107,3315.8,3315.1,0.60337]
[1737017407525,3.81107,3315.8,3314.8,4.8115]
[1737017407526,3.2078,3315.8,3314.8,4.8115]
[1737017407729,3.2078,3315.8,3315.3,0.60333]
[1737017407932,3.2078,3315.8,3314.8,4.8115]
[1737017408130,3.2078,3315.8,3314.9,0.60342]
[1737017408331,3.2078,3315.8,3314.8,4.8115]
[1737017408631,3.2078,3315.3,3314.7,3.2078]
[1737017409034,3.2078,3315.3,3314.8,0.60343]
[1737017409233,3.2078,3315.3,3315.1,0.60337]
[1737017409536,3.2078,3315.3,3314.7,3.2078]
[1737017409537,3.2078,3315.3,3315.2,0.60337]
[1737017410235,3.2078,3315.3,3315.2,41.40337]
[1737017410732,3.2078,3315.8,3315.2,40.8]
[1737017411036,3.2078,3315.8,3315.7,0.60328]
[1737017411232,3.2078,3316.2,3315.9,0.60322]
[1737017411533,3.2078,3317.0,3316.6,0.6031]
[1737017411727,3.2078,3317.0,3315.9,1.728]
[1737017412129,3.2078,3317.0,3316.0,1.4272]
[1737017412327,3.2078,3317.0,3316.9,0.60306]
[1737017412724,3.2078,3317.5,3317.4,0.60297]
[1737017412924,6.60639512,3318.5,3317.9,0.60287]
[1737017413131,6.60639512,3318.5,3317.4,42.528]
[1737017413429,6.60639512,3318.5,3317.4,45.7358]
[1737017413738,3.2078,3318.5,3317.4,45.7358]
[1737017414034,3.2078,3318.5,3318.4,0.60279]
[1737017414427,1.4969,3319.6,3318.0,3.2078]
[1737017414428,3.2078,3318.9,3318.8,0.60271]
[1737017414631,3.2078,3318.9,3318.6,0.60273]
[1737017414930,3.29427865,3318.7,3316.7,3.2078]
[1737017415134,3.2078,3317.3,3316.7,1.5384]
[1737017415434,3.2078,3317.3,3316.9,0.60304]
[1737017415632,3.2078,3317.3,3317.0,0.60302]
[1737017415830,3.2078,3317.4,3316.7,1.5384]
[1737017416332,3.2078,3317.4,3316.9,0.60305]
[1737017416528,3.2078,3317.0,3316.8,0.60306]
[1737017416842,3.2078,3317.0,3316.9,0.60306]
[1737017417136,3.2078,3317.5,3317.2,0.60299]
[1737017417323,3.2078,3317.5,3316.8,0.60308]
[1737017417835,3.2078,3317.1,3316.8,0.60306]
[1737017418529,3.2078,3317.1,3316.2,2.8638]
[1737017418723,3.2078,3316.7,3316.5,0.60312]
[1737017418926,3.2078,3316.7,3316.2,2.8638]
[1737017419132,3.81097,3316.3,3315.5,0.6033]
[1737017419333,3.2078,3315.8,3315.6,0.60328]
[1737017419529,3.2078,3315.8,3315.0,1.727]
[1737017419734,3.2078,3315.8,3315.7,0.60328]
[1737017420133,3.2078,3315.8,3314.9,3.2078]
[1737017420333,3.2078,3315.3,3314.9,0.60342]
[1737017420630,3.2078,3315.3,3314.7,42.2488]
[1737017421029,3.2078,3315.3,3314.8,0.60344]
[1737017421336,3.2078,3315.3,3314.5,3.2078]
[1737017421630,3.2078,3314.9,3314.1,3.2078]
[1737017422033,3.2078,3314.9,3313.7,41.3]
[1737017422233,3.2078,3314.4,3313.7,41.3]
[1737017422624,3.2078,3314.4,3314.1,0.60356]
[1737017423133,3.2078,3314.4,3314.1,0.60357]
[1737017423437,3.2078,3314.4,3314.0,0.60358]
[1737017423932,3.81132,3314.4,3313.7,0.5]
[1737017424136,3.2078,3313.8,3313.7,0.5]
[1737017426143,3.81142,3313.8,3313.7,0.5]
[1737017426436,3.2078,3313.8,3313.7,0.5]
[1737017426735,3.2078,3313.8,3312.7,1.91358249]
[1737017426736,0.60373,3313.3,3312.5,0.60386]
[1737017427033,3.2078,3312.8,3312.0,0.00258027]
[1737017427234,3.2078,3312.8,3312.2,0.6039]
[1737017427425,3.2078,3312.8,3312.1,40.8]
[1737017428041,3.2078,3313.3,3312.6,3.29427865]
[1737017428231,3.2078,3313.7,3312.8,3.2078]
[1737017428432,3.2078,3313.7,3312.7,1.672]
[1737017428931,3.2078,3313.3,3312.4,3.2078]
[1737017429136,3.2078,3313.7,3312.4,3.2078]
[1737017429440,3.2078,3313.3,3312.2,1.673]
[1737017429634,3.2078,3313.3,3312.7,0.60382]
[1737017430032,3.2078,3312.9,3312.5,0.60384]
[1737017430339,3.2078,3312.9,3312.2,0.60391]
[1737017430540,3.2078,3312.5,3312.3,0.60389]
[1737017430739,3.2078,3312.5,3312.0,0.00258027]
[1737017431238,3.2078,3312.5,3312.0,40.80258027]
[1737017431442,3.2078,3312.5,3312.2,0.6039]
[1737017431631,3.2078,3312.5,3312.0,40.80258027]
[1737017431843,3.2078,3312.5,3312.4,0.60388]
[1737017432337,3.2078,3312.9,3312.4,0.60388]
[1737017432640,3.2078,3312.9,3312.8,0.6038]
[1737017433242,3.2078,3312.9,3312.8,40.8]
[1737017433544,3.2078,3312.9,3312.8,41.4038]
[1737017434739,3.2078,3312.9,3312.8,40.8]
[1737017434940,3.2078,3312.9,3312.3,0.60388]
[1737017435144,3.2078,3312.9,3312.5,0.60386]
[1737017435335,3.2078,3312.9,3312.5,40.8]
[1737017435536,3.2078,3312.9,3312.8,0.6038]
[1737017435839,3.2078,3312.9,3312.5,0.60385]
[1737017436042,3.2078,3312.9,3312.7,0.60382]
[1737017436341,3.2078,3312.9,3312.6,0.60383]
[1737017436642,3.2078,3312.9,3312.8,0.6038]
[1737017436843,3.2078,3312.9,3312.3,3.2078]
[1737017436844,3.2078,3312.9,3312.7,0.60382]
[1737017437139,3.2078,3312.9,3312.4,40.8]
[1737017437343,3.2078,3312.9,3312.5,0.60385]
[1737017437539,3.2078,3312.9,3312.3,4.8808]
[1737017437740,3.2078,3312.9,3312.3,3.2078]
[1737017437940,3.2078,3312.9,3312.0,0.00258027]
[1737017437941,3.2078,3312.5,3312.0,0.00258027]
[1737017438140,3.2078,3312.1,3312.0,0.00258027]
[1737017438639,3.2078,3312.1,3311.1,0.60411]
[1737017438640,0.60398,3311.9,3311.1,0.60411]
[1737017438844,3.2078,3311.4,3311.1,0.60411]
[1737017439045,3.2078,3311.4,3310.6,6.1448]
[1737017439360,3.2078,3311.4,3310.8,0.60415]
[1737017439361,3.23736691,3311.3,3310.8,0.60415]